fUST/lending_fUST_20251116
["ID","MTS","AMOUNT","RATE_DAILY","PERIOD"]
[394109868,1763296203520,-381.46090835,0.00013869,2]
[394109869,1763296203535,-580.93353525,0.00013869,2]
[394109870,1763296203549,-1000.0,0.00013869,2]
[394109871,1763296203564,-1000.0,0.00013869,2]
[394109872,1763296203584,-692.13304704,0.00013869,2]
[394109873,1763296203599,-498.2342603,0.00013869,2]
[394109874,1763296203619,-3878.5086377,0.00013869,2]
[394109875,1763296203628,-1235.72,0.00013973,2]
[394109876,1763296203638,-1224.40023137,0.00013982,2]
[394109877,1763296203648,-366.13800148,0.00014002,2]
[394109878,1763296203657,-914.50851477,0.00014003,2]
[394109879,1763296203692,-300.0,0.00013172,2]
[394109880,1763296203702,-9474.1827215,0.00014003,2]
[394109881,1763296203721,-7953.93130415,0.00014003,2]
[394109882,1763296203730,-176.53,0.00014087,2]
[394109883,1763296203740,-176.53,0.00014101,2]
[394109884,1763296203752,-176.53,0.00014115,2]
[394109885,1763296203762,-250.0,0.00014133,2]
[394109886,1763296203771,-250.0,0.00014133,2]
[394109887,1763296203780,-44.96277247,0.00014133,2]
[394109888,1763296205321,-500.0,0.00013173,2]
[394109889,1763296205349,-500.0,0.00013173,2]
[394109890,1763296205378,-1000.0,0.00013721,2]
[394109891,1763296205407,-514.98136842,0.00013721,2]
[394109892,1763296205437,-298.41496938,0.00014133,2]
[394109893,1763296205466,-430.30265986,0.0001415,2]
[394109894,1763296205495,-774.54478775,0.0001415,2]
[394109895,1763296205524,-175.55903353,0.0001415,2]
[394109896,1763296205553,-316.00626035,0.0001415,2]
[394109897,1763296205586,-418.60293413,0.0001415,2]
[394109898,1763296205760,-143.18597316,0.0001415,2]
[394109900,1763296211584,-1200.0,0.00014149,2]
[394109901,1763296211613,-876.91737248,0.0001415,2]
[394109902,1763296211645,-600.0,0.00014182,2]
[394109903,1763296211673,-210.95959994,0.00014251,2]
[394109904,1763296211705,-1100.00002719,0.00014268,2]
[394109905,1763296211735,-606.37036509,0.00014268,2]
[394109906,1763296211823,-811.5152706,0.00014268,2]
[394109907,1763296211975,-503.11260544,0.00014268,2]
[394109908,1763296212004,-1500.0,0.00014268,2]
[394109909,1763296212032,-1500.0,0.00014268,2]
[394109910,1763296212095,-2993.78478912,0.00014315,2]
[394109911,1763296212232,-3674.28929784,0.00014315,2]
[394109912,1763296215133,2651.43140432,0.00014042,2]
[394109913,1763296215154,10000.01,0.00014042,2]
[394109914,1763296215175,5606.55859568,0.00014042,2]
[394109915,1763296215740,4393.45140432,0.00014042,2]
[394109916,1763296215761,10000.01,0.00014042,2]
[394109997,1763296231878,-853.96724749,0.00014042,2]
[394110000,1763296231890,-3010.57134819,0.00014042,2]
[394110002,1763296231899,-18258.0,0.00014042,2]
[394110004,1763296231908,-18258.0,0.00014042,2]
[394110005,1763296231918,-3913.51911924,0.00014042,2]
[394110007,1763296231929,-1884.4857345,0.00014042,2]
[394110009,1763296231940,-281.5353016,0.00014042,2]
[394110027,1763296237547,-293.64062628,0.00014042,2]
[394110036,1763296237632,-1226.17148823,0.00014042,2]
[394110039,1763296237645,-1868.35163947,0.00014042,2]
[394110240,1763296239757,-1553.17549407,0.00014042,2]
[394110242,1763296239768,-841.52588397,0.00014042,2]
[394110268,1763296239997,-3e-08,0.00014042,2]
[394110270,1763296240010,-1328.49113914,0.00014042,2]
[394110273,1763296240021,-2999.97612,0.00014042,2]
[394110285,1763296240126,-189.39120443,0.00014042,2]
[394110624,1763296243455,-230.83675562,0.00014042,2]
[394110716,1763296244440,-24.07569317,0.00014042,2]
[394110718,1763296244451,-418.93857618,0.00014042,2]
[394110724,1763296244496,-277.29284824,0.00014042,2]
[394110727,1763296244507,-926.59237583,0.00014042,2]
[394110728,1763296244516,-10028.37611316,0.00014042,2]
[394110739,1763296244608,-458.91286169,0.00014042,2]
[394110746,1763296244667,-1656.06,0.00014042,2]
[394110891,1763296246087,-6114.65102515,0.00014042,2]
[394110892,1763296246096,-1405.67070538,0.00014042,2]
[394110944,1763296246619,-262.06839354,0.00014042,2]
[394111268,1763296250535,-360.70904745,0.00014042,2]
[394111447,1763296252354,-167.14167709,0.00014042,2]
[394111584,1763296254413,-208.36124201,0.00014042,2]
[394111660,1763296257082,-432.71403423,0.00014042,2]
[394111661,1763296258338,1059.14,0.00016737,3]
[394111662,1763296259184,-346.00455796,0.00014042,2]
[394111663,1763296262006,-283.17773406,0.00014042,2]
[394111664,1763296263106,300.0,0.00014041,2]
[394111665,1763296265051,-248.77514059,0.00014042,2]
[394111666,1763296266711,-219.26868526,0.00014042,2]
[394111667,1763296268931,529.57,0.00016428,3]
[394111668,1763296269172,1059.14,0.00017798,3]
[394111669,1763296270909,-271.97300814,0.00014042,2]
[394111670,1763296273672,-573.28340156,0.00014042,2]
[394111671,1763296275679,-206.73428582,0.00014042,2]
[394111672,1763296277785,-988.66838313,0.00014042,2]
[394111673,1763296279332,-170.54440839,0.00014042,2]
[394111674,1763296279573,264.79,0.00016428,3]
[394111675,1763296279785,529.58,0.00017798,3]
[394111676,1763296284327,-210.55590752,0.00014042,2]
[394111677,1763296285899,233.91871196,0.00013146,2]
[394111678,1763296286142,-184.80898443,0.00014042,2]
[394111679,1763296288985,-254.37640146,0.00014042,2]
[394111680,1763296290184,794.39,0.00016428,3]
[394111681,1763296291589,-542.47836676,0.00014042,2]
[394111682,1763296294619,-459.61023795,0.00014042,2]
[394111683,1763296298460,-168.69568844,0.00014042,2]
[394111684,1763296300735,-216.96010571,0.00014042,2]
[394111685,1763296302635,-229.79582795,0.00014042,2]
[394111686,1763296304987,-509.25367433,0.00014042,2]
[394111687,1763296307185,-430.62106789,0.00014042,2]
[394111688,1763296311215,-186.06169872,0.00014042,2]
[394111689,1763296314420,-741.834414,0.00014042,2]
[394111690,1763296318193,-254.4734089,0.00014042,2]
[394111691,1763296322043,-291.36681348,0.00014042,2]
[394111692,1763296325198,-413.16149395,0.00014042,2]
[394111693,1763296326698,-798.63030659,0.00014042,2]
[394111694,1763296328621,-175.58133288,0.00014042,2]
[394111695,1763296331224,-181.88495492,0.00014042,2]
[394111696,1763296333401,-325.19871181,0.00014042,2]
[394111697,1763296336143,-354.12447182,0.00014042,2]
[394111698,1763296338942,-184.64882398,0.00014042,2]
[394111699,1763296340574,-151.51062978,0.00014042,2]
[394111700,1763296343506,249.1171301,0.00014042,2]
[394111701,1763296344021,-371.20125975,0.00014042,2]
[394111702,1763296344052,2433.23009595,0.00013902,2]
[394111703,1763296346376,-531.26706152,0.00014042,2]
[394111704,1763296349261,-625.44777549,0.00014042,2]
[394111705,1763296351901,-229.53691335,0.00014042,2]
[394111706,1763296353977,153.23669654,0.00013146,2]
[394111707,1763296354006,500.0,0.00013146,2]
[394111708,1763296354039,500.0,0.00013146,2]
[394111709,1763296354066,267.64889346,0.00013146,2]
[394111710,1763296354231,-197.28475644,0.00014042,2]
[394111711,1763296354307,500.0,0.00013146,2]
[394111712,1763296355032,500.0,0.00013146,2]
[394111713,1763296355073,500.0,0.00013146,2]
[394111714,1763296355359,500.0,0.00013146,2]
[394111715,1763296356297,500.0,0.00013146,2]
[394111716,1763296356332,500.0,0.00013146,2]
[394111717,1763296356372,500.0,0.00013146,2]
[394111718,1763296356407,500.0,0.00013146,2]
[394111719,1763296356439,500.0,0.00013146,2]
[394111720,1763296356470,500.0,0.00013146,2]
[394111721,1763296356499,362.85847199,0.00013146,2]
[394111722,1763296356525,137.14152801,0.00013146,2]
[394111723,1763296356565,500.0,0.00013146,2]
[394111724,1763296356600,500.0,0.00013146,2]
[394111725,1763296356630,500.0,0.00013146,2]
[394111726,1763296356661,500.0,0.00013146,2]
[394111727,1763296356691,500.0,0.00013146,2]
[394111728,1763296356725,500.0,0.00013146,2]
[394111729,1763296356764,-196.58921793,0.00014042,2]
[394111730,1763296356795,500.0,0.00013146,2]
[394111731,1763296356827,500.0,0.00013146,2]
[394111732,1763296356858,500.0,0.00013146,2]
[394111733,1763296356892,500.0,0.00013146,2]
[394111734,1763296356930,500.0,0.00013146,2]
[394111735,1763296356966,500.0,0.00013146,2]
[394111736,1763296357009,500.0,0.00013146,2]
[394111737,1763296357060,500.0,0.00013146,2]
[394111738,1763296357092,500.0,0.00013146,2]
[394111739,1763296357124,500.0,0.00013146,2]
[394111740,1763296357164,500.0,0.00013146,2]
[394111741,1763296357199,500.0,0.00013146,2]
[394111742,1763296357235,500.0,0.00013146,2]
[394111743,1763296357265,362.86847199,0.00013146,2]
[394111744,1763296357291,137.13152801,0.00013146,2]
[394111745,1763296357327,500.0,0.00013146,2]
[394111746,1763296357359,500.0,0.00013146,2]
[394111747,1763296357396,500.0,0.00013146,2]
[394111748,1763296357427,295.73671072,0.00013146,2]
[394111749,1763296357461,500.0,0.00013146,2]
[394111750,1763296357493,500.0,0.00013146,2]
[394111751,1763296357529,500.0,0.00013146,2]
[394111752,1763296357558,500.0,0.00013146,2]
[394111753,1763296357588,500.0,0.00013146,2]
[394111754,1763296357628,500.0,0.00013146,2]
[394111755,1763296357658,500.0,0.00013146,2]
[394111756,1763296357688,500.0,0.00013146,2]
[394111757,1763296361316,-184.57899421,0.00014042,2]
[394111758,1763296363080,-259.2295785,0.00014042,2]
[394111759,1763296363711,500.0,0.00013146,2]
[394111760,1763296363746,500.0,0.00013146,2]
[394111761,1763296366632,-310.41833647,0.00014042,2]
[394111762,1763296368189,-154.15334276,0.00014042,2]
[394111763,1763296369711,-157.78090845,0.00014042,2]
[394111764,1763296370953,179.13623683,0.00013146,2]
[394111765,1763296372182,-381.21381954,0.00014042,2]
[394111766,1763296379687,500.0,0.00013146,2]
[394111767,1763296379717,500.0,0.00013146,2]
[394111768,1763296379754,500.0,0.00013146,2]
[394111769,1763296379800,381.31360078,0.00013146,2]
[394111770,1763296379835,500.0,0.00013146,2]
[394111771,1763296379865,381.31360078,0.00013146,2]
[394111772,1763296391125,125.37832288,0.00013146,2]
[394111773,1763296391149,374.62167712,0.00013146,2]
[394111774,1763296391181,500.0,0.00013146,2]
[394111775,1763296391213,500.0,0.00013146,2]
[394111776,1763296391243,500.0,0.00013146,2]
[394111777,1763296391272,500.0,0.00013146,2]
[394111778,1763296391306,500.0,0.00013146,2]
[394111779,1763296391337,500.0,0.00013146,2]
[394111780,1763296391371,500.0,0.00013146,2]
[394111781,1763296391413,461.01713056,0.00013146,2]
[394111782,1763296391451,500.0,0.00013146,2]
[394111783,1763296391493,500.0,0.00013146,2]
[394111784,1763296391531,500.0,0.00013146,2]
[394111785,1763296391565,500.0,0.00013146,2]
[394111786,1763296420517,500.0,0.00013698,2]
[394111787,1763296420747,500.0,0.00013698,2]
[394111788,1763296420993,500.0,0.00013698,2]
[394111789,1763296421220,500.0,0.00013698,2]
[394111790,1763296421461,500.0,0.00013698,2]
[394111791,1763296421705,500.0,0.00013698,2]
[394111792,1763296422191,500.0,0.00013868,2]
[394111793,1763296422446,164.37119232,0.00014002,2]
[394111794,1763296422469,335.62880768,0.00014002,2]
[394111795,1763296437465,500.0,0.00014041,2]
[394111796,1763296437499,510.37113152,0.00014041,2]
[394111797,1763296437691,500.0,0.00014041,2]
[394111798,1763296471509,1001.33662621,0.00014042,2]
[394111799,1763296643404,500.0,0.00014041,2]
[394111800,1763296643639,477.35453833,0.00014041,2]
[394111801,1763296669244,1376.96851156,0.00013443,2]
[394111802,1763296699470,2250.50954869,0.00014002,2]
[394111803,1763296700617,2547.84083601,0.00013997,2]
[394111804,1763296700640,1202.37175818,0.00013997,2]
[394111805,1763296718998,353.04,0.00012329,2]
[394111806,1763296729412,294.2,0.00012329,2]
[394111807,1763296739799,245.17,0.00012329,2]
[394111808,1763296743773,300.0,0.00014041,2]
[394111809,1763296750426,204.31,0.00012329,2]
[394111810,1763296760829,170.26,0.00012329,2]
[394111811,1763296771617,851.3,0.00012329,2]
[394111812,1763296801895,300.0,0.00014041,2]
[394111813,1763296803468,300.0,0.00014041,2]
[394111814,1763296803497,300.0,0.00014041,2]
[394111815,1763296803694,1200.0,0.00014041,2]
[394111816,1763296804709,300.0,0.00014041,2]
[394111818,1763296822630,1000.0,0.00013699,2]
[394111819,1763296864130,300.0,0.00014041,2]
[394111820,1763296923686,300.0,0.00014041,2]
[394111822,1763296971282,355.44645106,0.00014042,2]
[394111823,1763296983148,1050.4541841,0.00017833,7]
[394111824,1763296983961,300.0,0.00014041,2]
[394111825,1763297044036,300.0,0.00014041,2]
[394111826,1763297091869,211.51302896,0.00014041,2]
[394111827,1763297103397,1200.0,0.00014041,2]
[394111828,1763297103443,12.3987618,0.00014041,2]
[394111829,1763297103466,287.6012382,0.00014041,2]
[394111830,1763297113372,1248.57000774,0.00014042,2]
[394111831,1763297163473,300.0,0.00014041,2]
[394111844,1763297181756,2250.50954869,0.00013989,2]
[394111859,1763297282838,300.0,0.00014041,2]
[394111861,1763297340899,150.0,0.00032875,120]
[394111862,1763297343389,300.0,0.00014041,2]
[394111863,1763297403970,300.0,0.00014041,2]
[394111864,1763297404584,1200.0,0.00014041,2]
[394111905,1763297431955,-546.77572777,0.00014042,2]
[394111912,1763297432011,-10774.31346623,0.00014042,2]
[394111915,1763297432021,-270.88133843,0.00014049,2]
[394111917,1763297432031,-207.518,0.00014132,2]
[394111918,1763297432040,-3750.21259419,0.0001414,2]
[394111921,1763297432049,-5334.4592696,0.00014271,2]
[394111922,1763297432059,-554.86098729,0.00014276,2]
[394111925,1763297432068,-5334.45926956,0.00014297,2]
[394111926,1763297432082,-600.0,0.00014322,2]
[394111929,1763297432092,-5334.45926956,0.00014322,2]
[394111930,1763297432101,-5334.45926956,0.00014348,2]
[394111933,1763297432110,-241.72917596,0.00014361,2]
[394111934,1763297432121,-500.0,0.00014368,2]
[394111937,1763297432131,-500.0,0.00014368,2]
[394111938,1763297432140,-167.81901461,0.00014368,2]
[394111940,1763297432149,-500.0,0.00014368,2]
[394111942,1763297432161,-500.0,0.00014368,2]
[394111944,1763297432170,-500.0,0.00014368,2]
[394111947,1763297432180,-500.0,0.00014368,2]
[394111948,1763297432189,-500.0,0.00014368,2]
[394111951,1763297432199,-500.0,0.00014368,2]
[394111953,1763297432208,-500.0,0.00014368,2]
[394111955,1763297432219,-500.0,0.00014368,2]
[394111957,1763297432228,-500.0,0.00014368,2]
[394111959,1763297432238,-500.0,0.00014368,2]
[394111961,1763297432247,-500.0,0.00014368,2]
[394111963,1763297432256,-500.0,0.00014368,2]
[394111965,1763297432265,-500.0,0.00014368,2]
[394111967,1763297432275,-500.0,0.00014368,2]
[394111969,1763297432284,-500.0,0.00014368,2]
[394111971,1763297432293,-500.0,0.00014368,2]
[394111973,1763297432302,-500.0,0.00014368,2]
[394111975,1763297432311,-500.0,0.00014368,2]
[394111976,1763297432321,-500.0,0.00014368,2]
[394111978,1763297432330,-500.0,0.00014368,2]
[394111981,1763297432340,-500.0,0.00014368,2]
[394111983,1763297432349,-500.0,0.00014368,2]
[394111985,1763297432359,-500.0,0.00014368,2]
[394111987,1763297432367,-500.0,0.00014368,2]
[394111988,1763297432377,-554.02674465,0.00014368,2]
[394111990,1763297432387,-450.00000004,0.00014368,2]
[394111993,1763297432396,-500.0,0.00014368,2]
[394111994,1763297432405,-500.0,0.00014368,2]
[394111996,1763297432414,-500.0,0.00014368,2]
[394111998,1763297432424,-500.0,0.00014368,2]
[394112001,1763297432433,-500.0,0.00014368,2]
[394112003,1763297432443,-500.0,0.00014368,2]
[394112005,1763297432452,-500.0,0.00014368,2]
[394112006,1763297432461,-327.97027079,0.00014368,2]
[394112008,1763297432470,-500.0,0.00014368,2]
[394112010,1763297432483,-500.0,0.00014368,2]
[394112012,1763297432492,-500.0,0.00014368,2]
[394112014,1763297432502,-500.0,0.00014368,2]
[394112016,1763297432511,-500.0,0.00014368,2]
[394112018,1763297432521,-500.0,0.00014368,2]
[394112020,1763297432530,-500.0,0.00014368,2]
[394112022,1763297432539,-500.0,0.00014368,2]
[394112024,1763297432548,-500.0,0.00014368,2]
[394112026,1763297432557,-500.0,0.00014368,2]
[394112028,1763297432566,-500.0,0.00014368,2]
[394112030,1763297432576,-500.0,0.00014368,2]
[394112032,1763297432586,-500.0,0.00014368,2]
[394112034,1763297432595,-500.0,0.00014368,2]
[394112036,1763297432604,-500.0,0.00014368,2]
[394112038,1763297432613,-500.0,0.00014368,2]
[394112040,1763297432623,-500.0,0.00014368,2]
[394112042,1763297432632,-500.0,0.00014368,2]
[394112045,1763297432642,-500.0,0.00014368,2]
[394112046,1763297432651,-500.0,0.00014368,2]
[394112048,1763297432660,-500.0,0.00014368,2]
[394112050,1763297432669,-500.0,0.00014368,2]
[394112052,1763297432678,-500.0,0.00014368,2]
[394112054,1763297432688,-500.0,0.00014368,2]
[394112056,1763297432696,-500.0,0.00014368,2]
[394112058,1763297432705,-500.0,0.00014368,2]
[394112060,1763297432713,-500.0,0.00014368,2]
[394112062,1763297432723,-500.0,0.00014368,2]
[394112064,1763297432731,-500.0,0.00014368,2]
[394112066,1763297432740,-500.0,0.00014368,2]
[394112068,1763297432750,-500.0,0.00014368,2]
[394112069,1763297432758,-428.64772024,0.00014368,2]
[394112070,1763297432767,-500.0,0.00014368,2]
[394112071,1763297432776,-500.0,0.00014368,2]
[394112072,1763297432785,-500.0,0.00014368,2]
[394112073,1763297432793,-500.0,0.00014368,2]
[394112074,1763297432803,-500.0,0.00014368,2]
[394112075,1763297432811,-500.0,0.00014368,2]
[394112076,1763297432820,-1237.04266545,0.00014368,2]
[394112077,1763297432829,-1237.04266545,0.00014368,2]
[394112078,1763297432838,-1237.04266545,0.00014368,2]
[394112079,1763297432847,-1237.04266545,0.00014368,2]
[394112080,1763297432856,-1237.04266545,0.00014368,2]
[394112081,1763297432865,-1237.04266545,0.00014368,2]
[394112082,1763297432873,-1237.04266545,0.00014368,2]
[394112083,1763297432882,-1237.04266545,0.00014368,2]
[394112084,1763297432891,-1237.04266545,0.00014368,2]
[394112085,1763297432900,-1237.04266545,0.00014368,2]
[394112086,1763297432908,-1237.04266545,0.00014368,2]
[394112087,1763297432917,-1237.04266545,0.00014368,2]
[394112088,1763297432926,-1237.04266545,0.00014368,2]
[394112089,1763297432934,-1237.04266545,0.00014368,2]
[394112090,1763297432943,-1237.04266545,0.00014368,2]
[394112091,1763297432952,-1237.04266545,0.00014368,2]
[394112092,1763297432961,-1237.04266545,0.00014368,2]
[394112093,1763297432970,-1237.04266545,0.00014368,2]
[394112094,1763297432979,-1237.04266545,0.00014368,2]
[394112095,1763297432987,-1237.04266545,0.00014368,2]
[394112096,1763297432996,-1237.04266545,0.00014368,2]
[394112097,1763297433004,-1237.04266545,0.00014368,2]
[394112098,1763297433013,-1237.04266545,0.00014368,2]
[394112099,1763297433021,-1237.04266545,0.00014368,2]
[394112100,1763297433030,-1237.04266545,0.00014368,2]
[394112101,1763297433038,-1237.04266545,0.00014368,2]
[394112102,1763297433047,-1237.04266545,0.00014368,2]
[394112103,1763297433056,-1237.04266545,0.00014368,2]
[394112104,1763297433065,-1237.04266545,0.00014368,2]
[394112105,1763297433077,-1237.04266545,0.00014368,2]
[394112106,1763297433087,-1237.04266545,0.00014368,2]
[394112107,1763297433096,-1237.04266545,0.00014368,2]
[394112108,1763297433105,-1237.04266545,0.00014368,2]
[394112109,1763297433114,-1237.04266545,0.00014368,2]
[394112110,1763297433124,-1237.04266545,0.00014368,2]
[394112111,1763297433134,-1237.04266545,0.00014368,2]
[394112112,1763297433143,-1237.04266545,0.00014368,2]
[394112113,1763297433247,-1237.04266545,0.00014368,2]
[394112114,1763297433257,-1237.04266545,0.00014368,2]
[394112115,1763297433267,-1237.04266545,0.00014368,2]
[394112116,1763297433276,-1237.04266545,0.00014368,2]
[394112117,1763297433286,-1237.04266545,0.00014368,2]
[394112118,1763297433296,-1237.04266545,0.00014368,2]
[394112119,1763297433305,-1237.04266545,0.00014368,2]
[394112120,1763297433314,-1248.82402417,0.00014368,2]
[394112121,1763297433323,-1248.82402417,0.00014368,2]
[394112122,1763297433332,-1248.82402417,0.00014368,2]
[394112123,1763297433341,-1248.82402417,0.00014368,2]
[394112124,1763297433350,-1248.82402417,0.00014368,2]
[394112125,1763297433359,-1248.82402417,0.00014368,2]
[394112126,1763297433368,-1248.82402417,0.00014368,2]
[394112127,1763297433377,-1248.82402417,0.00014368,2]
[394112128,1763297433387,-1248.82402417,0.00014368,2]
[394112129,1763297433396,-1248.82402417,0.00014368,2]
[394112130,1763297433406,-1248.82402417,0.00014368,2]
[394112131,1763297433415,-823.24206358,0.00014368,2]
[394112170,1763297437931,-354.16772944,0.00014367,2]
[394112171,1763297437940,-50000.0,0.00014369,2]
[394112172,1763297437950,-151.0,0.00014371,2]
[394112173,1763297437959,-500.0,0.00014373,2]
[394112174,1763297437968,-500.0,0.00014373,2]
[394112175,1763297437977,-500.0,0.00014373,2]
[394112176,1763297437985,-500.0,0.00014373,2]
[394112177,1763297437994,-5334.45926956,0.00014373,2]
[394112178,1763297438003,-131961.0932339,0.00014421,2]
[394112265,1763297440473,-0.00197111,0.00014421,2]
[394112268,1763297440484,-16083.53988328,0.00014421,2]
[394112270,1763297440499,-234706.39844153,0.00014421,2]
[394112295,1763297445065,-206.72474021,0.00014276,2]
[394112296,1763297445075,-1733.8261219,0.00014421,2]
[394112310,1763297447255,-3458.56872585,0.00014247,2]
[394112311,1763297447265,-14858.89631372,0.00014421,2]
[394112312,1763297552746,3786.2198914,0.00013342,2]
[394112314,1763297622976,772.112945,0.00013699,2]
[394112315,1763297720754,3026.24763511,0.00014196,2]
[394112316,1763297899537,867.96451763,0.0001,2]
[394112317,1763297899935,867.96451763,0.00013103,5]
[394112318,1763297900365,867.96451763,0.00016207,9]
[394112319,1763297956053,1547.46501086,0.0001419,2]
[394112320,1763297956075,703.04453783,0.0001419,2]
[394112321,1763297956646,3750.21259419,0.00014039,2]
[394112322,1763297971821,1317.416901,0.00013699,2]
[394112323,1763297977879,1500.0,0.00014152,2]
[394112324,1763298000194,1500.0,0.00014152,2]
[394112325,1763298022777,1229.33596698,0.00014125,2]
[394112326,1763298022799,1171.23938812,0.00014125,2]
[394112342,1763298302229,377.3241356,0.0001365,2]
[394112343,1763298402687,802.0,0.000154,3]
[394112344,1763298429186,2807.0,0.00032877,120]
[394112346,1763298471320,2250.50954869,0.00014106,2]
[394112347,1763298471659,3750.21259419,0.000141,2]
[394112348,1763298490406,160.42404028,0.0001365,2]
[394112350,1763298540764,150.0,0.00032876,120]
[394112404,1763298632388,-568.77229668,0.00014212,2]
[394112486,1763298634402,999.0,0.00013299,2]
[394112510,1763298638083,-2500.9941103,0.00014212,2]
[394112511,1763298638093,-265.46371166,0.00014244,2]
[394112512,1763298638103,-300.0,0.00014267,2]
[394112513,1763298638112,-1200.0,0.00014267,2]
[394112514,1763298638121,-7167.80811067,0.00014268,2]
[394112515,1763298638131,-18258.0,0.00014312,2]
[394112516,1763298638140,-18258.0,0.00014312,2]
[394112517,1763298638150,-18258.0,0.00014312,2]
[394112518,1763298638160,-18258.0,0.00014312,2]
[394112519,1763298638170,-18258.0,0.00014312,2]
[394112520,1763298638180,-7819.8232087,0.00014312,2]
[394112537,1763298640193,-380.00040936,0.00014312,2]
[394112538,1763298640250,-10058.17638194,0.00014312,2]
[394112539,1763298640260,-18258.0,0.00014312,2]
[394112540,1763298640270,-18258.0,0.00014312,2]
[394112541,1763298640280,-18258.0,0.00014312,2]
[394112542,1763298640290,-500.0,0.00014314,2]
[394112543,1763298640299,-508.30484555,0.00014314,2]
[394112544,1763298640308,-500.0,0.00014314,2]
[394112545,1763298640318,-508.30484555,0.00014314,2]
[394112546,1763298640327,-500.0,0.00014314,2]
[394112547,1763298640336,-203.10780787,0.00014314,2]
[394112548,1763298640345,-508.30484555,0.00014314,2]
[394112549,1763298640355,-500.0,0.00014314,2]
[394112550,1763298640364,-508.30484555,0.00014314,2]
[394112551,1763298640374,-648.26744649,0.00014314,2]
[394112552,1763298640383,-508.30484555,0.00014314,2]
[394112553,1763298640392,-508.30484555,0.00014314,2]
[394112554,1763298640402,-508.30484555,0.00014314,2]
[394112555,1763298640411,-508.30484555,0.00014314,2]
[394112556,1763298640422,-508.30484555,0.00014314,2]
[394112557,1763298640431,-508.30484555,0.00014314,2]
[394112558,1763298640440,-508.30484555,0.00014314,2]
[394112559,1763298640450,-508.30484555,0.00014314,2]
[394112560,1763298640459,-508.30484555,0.00014314,2]
[394112561,1763298640469,-508.30484555,0.00014314,2]
[394112562,1763298640479,-508.30484555,0.00014314,2]
[394112563,1763298640489,-508.30484555,0.00014314,2]
[394112564,1763298640499,-508.30484555,0.00014314,2]
[394112565,1763298640509,-508.30484555,0.00014314,2]
[394112566,1763298640520,-508.30484555,0.00014314,2]
[394112567,1763298640531,-508.30484555,0.00014314,2]
[394112568,1763298640544,-508.30484555,0.00014314,2]
[394112569,1763298640554,-508.30484555,0.00014314,2]
[394112570,1763298640565,-508.30484555,0.00014314,2]
[394112571,1763298640577,-508.30484555,0.00014314,2]
[394112572,1763298640587,-508.30484555,0.00014314,2]
[394112573,1763298640596,-508.30484555,0.00014314,2]
[394112574,1763298640606,-508.30484555,0.00014314,2]
[394112575,1763298640617,-508.30484555,0.00014314,2]
[394112576,1763298640627,-508.30484555,0.00014314,2]
[394112577,1763298640636,-508.30484555,0.00014314,2]
[394112578,1763298640645,-508.30484555,0.00014314,2]
[394112579,1763298640656,-508.30484555,0.00014314,2]
[394112580,1763298640665,-508.30484555,0.00014314,2]
[394112581,1763298640675,-508.30484555,0.00014314,2]
[394112582,1763298640684,-508.30484555,0.00014314,2]
[394112583,1763298640693,-508.30484555,0.00014314,2]
[394112584,1763298640703,-508.30484555,0.00014314,2]
[394112585,1763298640712,-508.30484555,0.00014314,2]
[394112586,1763298640721,-508.30484555,0.00014314,2]
[394112587,1763298640730,-508.30484555,0.00014314,2]
[394112588,1763298640739,-508.30484555,0.00014314,2]
[394112589,1763298640748,-508.30484555,0.00014314,2]